Cogmind - Beta 13 @@@ ROGUE MODE // 2024.04.01 @ 07:53:35 Player: BrainTooSmol Result: Destroyed by Cetus Guard with Advanced KE Penetrator Performance ------------- Evolutions (4) 2000 Regions Visited (7) 1400 Robots Destroyed (58) 290 Value Destroyed (2157) 2157 Prototype IDs (11) 220 Alien Tech Used (0) 0 Bonus (738) 738 TOTAL SCORE: 6805 Bonus ------- High Alert Combat Kills 49 Follower Combat Kills 756 Friendly Fire -67 Cogmind --------- Core Integrity 0/850 Matter 270/300 Energy 282/282 System Corruption 2% Temperature Warm (108) Movement Hovering (82) Location -6/Cetus Parts ------- > --- POWER (2) -------- Momentum-Angular Engine > --- PROPULSION (4) --- Hovering Carbon-VTOL Exoskeleton > --- UTILITY (6) ------ Armored Scrap Engine Visual Processing Unit Improved Sensor Array Improved Signal Interpreter > --- WEAPON (3) ------- Kinetic Construct/G Thermal Caster Construct/G Thermal Magnetic Construct/C > --- INVENTORY (5) ---- Advanced Heat Sink Kinecellerator Shield Generator Authchip [Propulsion] Authchip [Device] Peak State ------------ > --- POWER ------------ Momentum-Angular Engine > --- PROPULSION ------- Hovering Carbon-VTOL Exoskeleton > --- UTILITY ---------- Armored Scrap Engine Advanced Heat Sink Terrain Scan Processor Improved Terrain Scan Processor Shield Generator > --- WEAPON ----------- Scatter Rocket Array Thermal Caster Construct/G Thermal Magnetic Construct/C > --- INVENTORY -------- Signal Interpreter Kinecellerator Authchip [Propulsion] Authchip [Device] Long-range Missile Launcher [Rating: 66] Favorites ----------- Power Constructs Engine Constructs Propulsion Aluminum Leg Leg Aluminum Leg Wheel Compact Wheel Hover Unit Constructs Utility Small Storage Unit Device Armored Scrap Engine Storage Small Storage Unit Processor Visual Processing Unit Weapon Constructs Energy Gun Constructs Ballistic Gun Assault Rifle Ballistic Cannon Constructs Launcher Scatter Rocket Array Special Weapon Mining Laser Slashing Weapon Mining Claw Special Melee Weapon Improved Datajack Build | -11 -10 -10 -10 -8 -6 -6 -6 ------- Run | Yrd Mat Min Sub Rec Fac Ext Cet Slots Evolved 8 | . . . . . 8 . . Power 1 | . . . . . 1 . . Propulsion 2 | . . . . . 2 . . Utility 4 | . . . . . 4 . . Weapon 1 | . . . . . 1 . . Parts Attached 60 | 6 6 . 1 11 35 1 . Power 5 | 1 1 . . 1 2 . . Engine 5 | 1 1 . . 1 2 . . Core . | . . . . . . . . Reactor . | . . . . . . . . Propulsion 17 | 2 2 . . 5 8 . . Treads . | . . . . . . . . Leg 7 | 2 2 . . 1 2 . . Wheel 5 | . . . . . 5 . . Hover 5 | . . . . 4 1 . . Flight . | . . . . . . . . Utility 19 | 1 1 . . . 16 1 . Device 13 | . 1 . . . 11 1 . Storage 1 | 1 . . . . . . . Processor 5 | . . . . . 5 . . Hackware . | . . . . . . . . Protection . | . . . . . . . . Artifact . | . . . . . . . . Weapon 19 | 2 2 . 1 5 9 . . Energy Gun 4 | . . . . 1 3 . . Energy Cannon . | . . . . . . . . Ballistic Gun 7 | 2 . . . 2 3 . . Ballistic Cannon . | . . . . . . . . Launcher 4 | . . . 1 . 3 . . Special Weapon 1 | . 1 . . . . . . Impact Weapon . | . . . . . . . . Slashing Weapon 1 | . 1 . . . . . . Piercing Weapon . | . . . . . . . . Special Melee Weapon 2 | . . . . 2 . . . Unidentified Prototypes 2 | . . . . . 2 . . Parts Lost 24 | . 1 . 3 1 16 3 . Power 6 | . 1 . . 1 4 . . Propulsion 7 | . . . 1 . 5 1 . Utility 3 | . . . . . 3 . . Weapon 8 | . . . 2 . 4 2 . Highest Loss Streak 13 | . 1 . 2 1 13 1 . To Critical Strikes . | . . . . . . . . Average Slot Usage (%) 69 | . 85 100 85 87 54 59 60 Engine 7 | . 14 14 14 4 5 4 6 Leg 8 | . 28 28 25 3 2 . . Wheel 1 | . . . . . 1 4 . Hover 3 | . . . . 24 1 . 6 Device 12 | . . 14 14 14 16 13 13 Storage 6 | . 14 14 14 14 1 . . Processor 7 | . . . . . 8 14 13 Energy Gun 4 | . . . . 11 4 6 13 Ballistic Gun 9 | . 24 14 3 2 7 8 . Special Weapon 1 | . . 14 11 . . . . Special Melee Weapon 1 | . . . . 11 . . . Naked Turns . | . . . . . . . . Heaviest Build 35 | 12 13 12 13 17 32 35 35 Greatest Support 74 | 20 20 20 20 20 52 74 74 Greatest Overweight (x) 5 | . . . 1 1 5 1 . Average Overweight (x) . | . . . . . . . . Largest Inventory Capacity 8 | 8 8 8 8 8 8 5 5 Average Capacity 6 | 7 8 8 8 8 5 5 5 Most Carried 8 | 2 8 8 8 8 8 5 5 Average Carried 5 | . 4 8 7 7 5 4 5 Final Capacity 8 | 8 8 8 8 8 5 5 5 Final Carried 8 | 1 8 8 7 8 5 5 5 Scrap Engine Consumption 154 | . . . . . 49 105 . Constructs Created 8 | . . . . . 5 3 . Constructs Modified 35 | . . . . . 13 22 . Class Distribution -------------------- 36% | Mutant 29% | Construct 15% | Scavenger-Construct 10% | Commander-Mutant 7% | Scavenger-Mutant Dominant Class ---------------- Mutant | -10/Materials Mutant | -10/Mines Mutant | -10/Subcaves Commander-Mutant | -8/Recycling Construct | -6/Factory Construct | -6/Extension Construct | -6/Cetus Resources | -11 -10 -10 -10 -8 -6 -6 -6 ----------- Run | Yrd Mat Min Sub Rec Fac Ext Cet Matter Collected 1602 | 230 263 . 57 167 550 335 . Remotely . | . . . . . . . . Salvage Created 2115 | . 374 . 21 50 709 961 . Parts 121 | . 37 . 3 3 42 36 . Haulers Intercepted 1 | . . . . . . 1 . Recyclers Shooed 1 | . . . . . 1 . . Parts Field Recycled . | . . . . . . . . Retrieved Matter . | . . . . . . . . Parts Self-Destructed 2 | . . . 2 . . . . Prevented . | . . . . . . . . Kills | -11 -10 -10 -10 -8 -6 -6 -6 ------- Run | Yrd Mat Min Sub Rec Fac Ext Cet Combat Hostiles Destroyed 49 | . 14 . 5 1 16 13 . Melee 3 | . 3 . . . . . . Guns 36 | . 11 . . 1 13 11 . Cannons 2 | . . . 1 . . 1 . AOE 7 | . . . 4 . 3 . . Classes Destroyed 12 | . 4 . 1 1 3 3 . Worker 1 | . . . . . 1 . . Builder 1 | . . . . . 1 . . Hauler 1 | . . . . . . 1 . Operator 2 | . 1 . . . . 1 . Watcher 4 | . 2 . . . 2 . . Swarmer 17 | . 9 . 4 . 4 . . Grunt 20 | . 5 . . . 8 7 . Sentry 6 | . . . . 1 1 4 . Programmer 3 | . . . . . 3 . . Behemoth 1 | . . . . . . 1 . Subdweller 1 | . . . 1 . . . . Butcher 1 | . . . . . . 1 . Best Kill Streak 4 | . 4 . 4 1 4 2 . Combat Bots Only 4 | . 4 . 4 1 3 2 . Max Kills in Single Turn 2 | . 1 . 2 1 2 2 . Gunslinging . | . . . . . . . . Exploded 2 | . . . 2 . 2 . . Melee 1 | . 1 . . . . . . Uniques/NPCs Destroyed . | . . . . . . . . Combat | -11 -10 -10 -10 -8 -6 -6 -6 -------- Run | Yrd Mat Min Sub Rec Fac Ext Cet Hostile Shots Fired 492 | . 49 . 32 14 189 200 8 Missed 157 | . 12 . 10 5 63 66 1 Damage Taken 4433 | . 345 . 307 129 2281 1188 183 Core 997 | . 70 . 58 14 732 99 24 Absorbed by Shields 144 | . . . . . 77 67 . Regen/Repaired (Parts) 951 | . . . . . 364 587 . Core Remaining (%) 71 | 100 . . . 43 . . . Volleys Fired 164 | . 38 5 11 10 54 44 2 Largest 3 | . 2 1 1 1 3 3 2 Hottest 179 | . 40 100 100 56 138 179 116 Shots Fired 314 | . 76 5 11 10 99 109 4 Gun 290 | . 76 . . 10 96 106 2 Cannon 5 | . . . . . . 3 2 Launcher 8 | . . . 5 . 3 . . Special 11 | . . 5 6 . . . . Kinetic 215 | . 76 . . 8 66 65 . Thermal 75 | . . 5 6 2 30 28 4 Explosive 8 | . . . 5 . 3 . . Electromagnetic 16 | . . . . . . 16 . Robot Hit Streak 14 | . 7 . 4 8 10 14 7 Robot Miss Streak 8 | . 4 . 2 1 8 3 1 Penetration Max . | . . . . . . . . Secondary Targets 4 | . . . . . 1 3 . Max Gunslinging Chain 1 | . . . . . 1 1 . Shots Hit Robots 246 | . 48 . 4 43 72 76 3 Core Hits 149 | . 24 . 7 2 71 42 3 Critical Kills 2 | . . . . . . 2 . Critical Parts Destroyed 1 | . . . . . . 1 . Critical Strikes 5 | . . . . . 1 4 . Burn 1 | . . . . . 1 . . Destroy 4 | . . . . . . 4 . Melee Attacks 44 | . 10 . . 34 . . . Impact . | . . . . . . . . Slashing 10 | . 10 . . . . . . Piercing . | . . . . . . . . Sneak Attacks 33 | . . . . 33 . . . Combat Hostiles 14 | . . . . 14 . . . Follow-up Attacks . | . . . . . . . . Damage Inflicted 4904 | . 663 . 300 116 1900 1863 62 Guns 3875 | . 544 . . 116 1413 1764 38 Cannons 80 | . . . . . . 56 24 Explosions 730 | . . . 204 . 483 43 . Melee 119 | . 119 . . . . . . Ramming 4 | . . . . . 4 . . Kinetic 2807 | . 544 . . 102 1003 1158 . Thermal 1455 | . . . 96 14 777 506 62 Explosive 300 | . . . 204 . 96 . . Electromagnetic 219 | . . . . . 20 199 . Impact . | . . . . . . . . Slashing 119 | . 119 . . . . . . Piercing . | . . . . . . . . Highest Corruption 2 | . . . . . 2 2 2 Average Corruption 1 | . . . . . 1 2 2 Corruption Purged . | . . . . . . . . Corruption Blocked . | . . . . . . . . Effects 25 | . . . . . 7 18 . Message Errors 5 | . . . . . 1 4 . Matter Fused 8 | . . . . . 2 6 . Heat Flow Errors 2 | . . . . . 1 1 . Energy Discharges 3 | . . . . . 1 2 . Data Loss (minor) 3 | . . . . . 1 2 . Data Loss (major) 3 | . . . . . . 3 . Alerts 1 | . . . . . 1 . . Overload Shots . | . . . . . . . . Overflow Damage 108 | . . . 34 . 74 . . Projectiles . | . . . . . . . . Explosions 108 | . . . 34 . 74 . . Melee . | . . . . . . . . Knockbacks . | . . . . . . . . Impact . | . . . . . . . . Kinetic . | . . . . . . . . Secondary . | . . . . . . . . Self-Inflicted Damage 278 | . . . 53 . 192 33 . Shots 6 | . . . 2 . 3 1 . Rammed 2 | . . . . . 2 . . Targets Rammed 2 | . . . . . 2 . . Kicked . | . . . . . . . . Crushed . | . . . . . . . . Highest Temperature 299 | . . 62 . 16 251 299 108 Average Temperature 62 | . . 28 . 10 36 80 63 Received Heat Transfer 1161 | . 102 . 84 18 613 344 . Effects 3 | . . . . . . 3 . Interference 3 | . . . . . . 3 . Siege Activations . | . . . . . . . . Robots Corrupted . | . . . . . . . . Combat Hostiles . | . . . . . . . . Parts Fried 1 | . . . . . . 1 . Impact Corruptions . | . . . . . . . . Robots Melted 1 | . . . . . . 1 . Combat Hostiles 1 | . . . . . . 1 . Parts Melted 7 | . . . . . 1 6 . Heat Transferred 2535 | . . . 200 37 1138 1086 74 Parts Sabotaged . | . . . . . . . . Parts Stolen . | . . . . . . . . Parts Stripped . | . . . . . . . . Power Chain Reactions 1 | . . . . . . 1 . Alert | -11 -10 -10 -10 -8 -6 -6 -6 ------- Run | Yrd Mat Min Sub Rec Fac Ext Cet Peak Influence 490 | . 251 19 . 73 472 490 224 Initial 208 | . . 19 . . 62 184 208 Average 194 | . 108 19 . 33 244 306 215 Maximum Alert Level 2 | . 1 . . . 2 2 1 Low Security (%) 55 | 100 82 100 . 100 36 31 . Level 1 30 | . 17 . . . 45 43 100 Level 2 13 | . . . . . 18 24 . Level 3 . | . . . . . . . . Level 4 . | . . . . . . . . Level 5 . | . . . . . . . . High Security . | . . . . . . . . Max Security . | . . . . . . . . Squads Dispatched 9 | . 2 . . . 4 3 . Investigation 3 | . 1 . . . 1 1 . Extermination 2 | . . . . . 2 . . Reinforcement 4 | . 1 . . . 1 2 . Assault . | . . . . . . . . Garrison . | . . . . . . . . Intercept . | . . . . . . . . Searches Triggered . | . . . . . . . . Construction Impeded . | . . . . . . . . Haulers Reinforced 1 | . . . . . 1 . . Active Scanning Responses . | . . . . . . . . Cargo Convoy Interrupts . | . . . . . . . . Stealth | -11 -10 -10 -10 -8 -6 -6 -6 --------- Run | Yrd Mat Min Sub Rec Fac Ext Cet Distress Signals 5 | . . . . . 1 3 1 Communications Jammed . | . . . . . . . . Distress Signals . | . . . . . . . . Times Spotted 103 | . 27 . 9 3 24 35 5 Peak Tracking Total 6 | . 3 . 6 1 6 5 5 Tactical Retreats 11 | . 3 . 2 . 3 3 . Traps | -11 -10 -10 -10 -8 -6 -6 -6 ------- Run | Yrd Mat Min Sub Rec Fac Ext Cet Traps Triggered 10 | . 1 . . . 4 5 . Indirectly . | . . . . . . . . Trap Hack Attempts . | . . . . . . . . Triggered . | . . . . . . . . Disarmed . | . . . . . . . . Reprogrammed . | . . . . . . . . Reused . | . . . . . . . . Traps Extracted . | . . . . . . . . Installed . | . . . . . . . . Triggered . | . . . . . . . . Machines | -11 -10 -10 -10 -8 -6 -6 -6 ---------- Run | Yrd Mat Min Sub Rec Fac Ext Cet Machines Disabled 17 | . . . . . 15 2 . Max in Single Turn 10 | . . . . . 10 . . Garrison Access 1 | . . . . . 1 . . Machines Repaired . | . . . . . . . . Machines Dismantled . | . . . . . . . . Machines Sabotaged . | . . . . . . . . Overloaded Fab Kills . | . . . . . . . . Hacking | -11 -10 -10 -10 -8 -6 -6 -6 --------- Run | Yrd Mat Min Sub Rec Fac Ext Cet Machines Accessed 47 | . 8 . . 12 10 17 . Terminals 35 | . 6 . . 6 7 16 . Fabricators 1 | . . . . . 1 . . Repair Stations . | . . . . . . . . Recycling Units 10 | . 2 . . 6 1 1 . Scanalyzers . | . . . . . . . . Garrison Access 1 | . . . . . 1 . . Total Hacks 120 | . 29 . . 41 21 29 . Successful 74 | . 12 . . 29 13 20 . Failed 43 | . 16 . . 10 8 9 . Catastrophic 5 | . . . . 1 2 2 . Database Lockouts 3 | . 1 . . 2 . . . Manual 49 | . 16 . . 11 10 12 . Terminals 96 | . 25 . . 30 14 27 . Fabricators 2 | . . . . . 2 . . Repair Stations . | . . . . . . . . Recycling Units 20 | . 4 . . 11 3 2 . Scanalyzers . | . . . . . . . . Garrison Access 2 | . . . . . 2 . . Terminal Hacks 46 | . 6 . . 19 5 16 . Record 17 | . 3 . . 10 3 1 . Part Schematic 5 | . 1 . . 3 1 . . Prototype ID Bank 2 | . . . . 1 . 1 . Open Door 11 | . . . . . 1 10 . Branch Access Points 1 | . . . . 1 . . . Emergency Access Points 2 | . . . . 2 . . . Terminal Index 2 | . . . . 1 . 1 . Alert Level 1 | . . . . 1 . . . Unreport Threat 2 | . 1 . . . . 1 . Dispatch Records 1 | . . . . . . 1 . Zone Layout 2 | . 1 . . . . 1 . Fabricator Hacks 2 | . . . . . 2 . . Load Schematic 1 | . . . . . 1 . . Build 1 | . . . . . 1 . . Repair Station Hacks . | . . . . . . . . Recycling Unit Hacks 13 | . 2 . . 8 2 1 . Report Inventory 9 | . 2 . . 6 1 . . Retrieve Components 4 | . . . . 2 1 1 . Scanalyzer . | . . . . . . . . Garrison Access Hacks 1 | . . . . . 1 . . Seal Access 1 | . . . . . 1 . . Unauthorized Hacks 12 | . 4 . . 2 3 3 . Terminals 12 | . 4 . . 2 3 3 . Assimilate 2 | . 1 . . . 1 . . Botnet 10 | . 3 . . 2 2 3 . Fabricators . | . . . . . . . . Repair Stations . | . . . . . . . . Recycling Units . | . . . . . . . . Scanalyzers . | . . . . . . . . Garrison Access . | . . . . . . . . Data Cores Recovered . | . . . . . . . . Used . | . . . . . . . . Hacking Detections 29 | . 8 . . 6 7 8 . Full Trace Events 5 | . 3 . . 1 1 . . Feedback Events . | . . . . . . . . Feedback Blocked . | . . . . . . . . Robot Schematics Acquired . | . . . . . . . . Robots Built . | . . . . . . . . Authchips . | . . . . . . . . Time . | . . . . . . . . Total Robot Build Rating . | . . . . . . . . Part Schematics Acquired 5 | . 1 . . 3 1 . . Parts Built 2 | . . . . . 2 . . Authchips . | . . . . . . . . Time 84 | . . . . . 84 . . Total Part Build Rating 8 | . . . . . 8 . . Parts Repaired . | . . . . . . . . Time . | . . . . . . . . Parts Recycled . | . . . . . . . . Recycled Matter . | . . . . . . . . Retrieved Matter . | . . . . . . . . Retrieved Components 15 | . . . . 12 1 2 . Parts Scanalyzed . | . . . . . . . . Part Schematics Acquired . | . . . . . . . . Parts Damaged . | . . . . . . . . Bothacking | -11 -10 -10 -10 -8 -6 -6 -6 ------------ Run | Yrd Mat Min Sub Rec Fac Ext Cet Used RIF Installer . | . . . . . . . . Robots Hacked 1 | . . . . 1 . . . Non-combat 1 | . . . . 1 . . . Combat . | . . . . . . . . Robot Hacks Applied 2 | . . . . 2 . . . parse_system 1 | . . . . 1 . . . find_recycling 1 | . . . . 1 . . . Relay Couplers Released 4 | . . . . . 4 . . Programmers 4 | . . . . . 4 . . Fabnet Peak Effective % . | . . . . . . . . Robots Rewired 12 | . . . . 12 . . . Allies Hacked . | . . . . . . . . Hacks Repelled . | . . . . . . . . Allies | -11 -10 -10 -10 -8 -6 -6 -6 -------- Run | Yrd Mat Min Sub Rec Fac Ext Cet Total Allies 26 | . . . . 12 1 13 . Largest Group 12 | . . . . 12 11 7 1 Highest-Rated Group 343 | . . . . 162 152 343 39 Highest-Rated Ally 159 | . . . . 27 27 159 39 Total Orders 7 | . . . . . 2 5 . STAY 4 | . . . . . 1 3 . FOLLOW 3 | . . . . . 1 2 . Ally Attacks 180 | . . . . 8 19 148 5 Total Damage 3634 | . . . . 169 266 3164 35 Kills 24 | . . . . 3 1 20 . Allies Corrupted . | . . . . . . . . Allies Melted . | . . . . . . . . Intel | -11 -10 -10 -10 -8 -6 -6 -6 ------- Run | Yrd Mat Min Sub Rec Fac Ext Cet Robot Analysis Total . | . . . . . . . . Derelict Logs Recovered 2 | . . . 2 . . . . Drone Launches . | . . . . . . . . Drone Recoveries . | . . . . . . . . Exploration | -11 -10 -10 -10 -8 -6 -6 -6 ------------- Run | Yrd Mat Min Sub Rec Fac Ext Cet Turns Passed 5865 | 320 888 163 472 678 1529 1795 20 Spaces Moved 4281 | 52 559 105 325 610 1258 1357 15 Core 20 | 11 . . . . 9 . . Treads 13 | . . . . . . 13 . Legs 1877 | 41 559 105 325 54 510 283 . Wheels 1152 | . . . . . 92 1060 . Hover 689 | . . . . 556 117 1 15 Flight 530 | . . . . . 530 . . Fastest Speed 50 | 50 120 120 120 56 58 74 82 Average Speed 90 | 105 120 120 130 70 83 81 82 Slowest Speed 300 | 120 120 120 190 190 300 182 82 Overloaded Moves . | . . . . . . . . Propulsion Burnouts . | . . . . . . . . Robots Hopped 1 | . . . . . 1 . . Cave-ins Triggered . | . . . . . . . . Exploration Rate (%) 44 | 4 86 21 31 92 21 93 10 Regions Visited 7 Branch Regions 5 Pre-discovered Areas 2 | . . . 2 . . . . Known Exits Taken 2 | . . . . . 1 1 . Unknown Exits Taken 5 | 1 1 1 1 1 . . . Scrap Searched . | . . . . . . . . Spaces Dug 15 | . 3 . 12 . . . . Terrain Destroyed 130 | . 3 . 27 . 93 7 . Melee 3 | . 3 . . . . . . Projectile 3 | . . . . . . 3 . AOE 124 | . . . 27 . 93 4 . Terrain Rammed . | . . . . . . . . Walls Destroyed . | . . . . . . . . Machines Disabled . | . . . . . . . . Actions | -11 -10 -10 -10 -8 -6 -6 -6 --------- Run | Yrd Mat Min Sub Rec Fac Ext Cet Total 5912 | 317 681 127 351 831 1638 1949 18 Wait 1233 | 254 51 16 15 131 239 526 1 Move 4272 | 51 558 104 324 609 1255 1356 15 Hop 1 | . . . . . 1 . . Pick Up 49 | 6 11 1 . 11 20 . . Fast Attach 21 | 1 3 . . 2 15 . . Attach 31 | 5 1 . 1 3 20 1 . Detach 5 | . 1 . . 1 2 1 . Swap 8 | . 2 . . 6 . . . Drop 43 | . 6 1 . 11 24 1 . Fire 164 | . 38 5 11 10 54 44 2 Melee 44 | . 10 . . 34 . . . Ram 2 | . . . . . 2 . . Kick . | . . . . . . . . Crush . | . . . . . . . . Escape Stasis 24 | . . . . . 6 18 . Rewire 15 | . . . . 13 . 2 . Trap . | . . . . . . . . Miscellaneous . | . . . . . . . . Route ------- -11/Scrapyard -10/Materials (discovered 4 exits: [*Mat x3] / [*Min]) -10/Mines -10/Subcaves (discovered 2 exits: [*Mat] / *Rec) -8/Recycling -6/Factory (discovered 2 exits: [*Low] / *Ext) -6/Extension (discovered 3 exits: *Fac x2 / *Cet) -6/Cetus History --------- Turn | Location | Event 12 | -11/Scrapyard | Discovered new exit (range 15) 321 | -11/Scrapyard | Entered Materials 322 | -10/Materials | Build established: Mutant 588 | -10/Materials | Discovered new exit (range 5) 787 | -10/Materials | Discovered new exit (range 3) 976 | -10/Materials | Central database locked down 976 | -10/Materials | Discovered new exit (range 13) 1107 | -10/Materials | Discovered new exit (range 16) 1209 | -10/Materials | Entered Mines 1228 | -10/Mines | YI-UF0 nonchalantly dropped a Grenade Launcher on the ground 1363 | -10/Mines | Discovered new exit (range 3) 1372 | -10/Mines | Entered Subcaves 1613 | -10/Subcaves | Discovered new exit (range 10) 1614 | -10/Subcaves | Learned location of Zion (-7) 1614 | -10/Subcaves | Met a Zionite searching for "candidates" 1735 | -10/Subcaves | Discovered new exit (range 15) 1763 | -10/Subcaves | Core integrity fell below 50% 1844 | -10/Subcaves | Entered Recycling 1888 | -8/Recycling | Found Scrap Engine 2238 | -8/Recycling | Discovered new exit (range 11) 2292 | -8/Recycling | Build established: Commander-Mutant 2522 | -8/Recycling | Entered Factory 2522 | -6/Factory | Accompanied by 11 allies 2522 | -6/Factory | Evolved 8 slots: Power x1, Propulsion x2, Utility x4, Weapon x1 2638 | -6/Factory | Lost 11 allies 2642 | -6/Factory | Core integrity fell below 50% 2692 | -6/Factory | Lost 13 parts (2p5n2u4w) 2834 | -6/Factory | Discovered new exit (range 5) 2993 | -6/Factory | Build established: Scavenger-Mutant 3059 | -6/Factory | Fabricated Flak Gun (x2) 3110 | -6/Factory | Lost 3 parts (2p1u) 3178 | -6/Factory | Core integrity fell below 20% 3514 | -6/Factory | Found Prototype Launcher 3514 | -6/Factory | Identified Scatter Rocket Array 3535 | -6/Factory | Build established: Construct 3963 | -6/Factory | Build established: Scavenger-Construct 4011 | -6/Factory | Discovered new exit (range 6) 4013 | -6/Factory | Identified exit to Extension 4051 | -6/Factory | Entered Extension 4051 | -6/Extension | Accompanied by 1 ally 4156 | -6/Extension | Spotted B-75 Beast 4402 | -6/Extension | Rescued a captive Derelict 4402 | -6/Extension | Rescued a captive Derelict 4433 | -6/Extension | Rescued a captive Derelict 4433 | -6/Extension | Rescued a captive Derelict 4478 | -6/Extension | Rescued a captive Derelict 4498 | -6/Extension | Rescued a captive Derelict 4499 | -6/Extension | Rescued a captive Derelict 4624 | -6/Extension | Rescued A7 4664 | -6/Extension | Spotted B-75 Beast 4680 | -6/Extension | Destroyed B-75 Beast 4688 | -6/Extension | Lost 5 allies 4699 | -6/Extension | Allies destroyed B-75 Beast 4740 | -6/Extension | Discovered new exit (range 3) 4742 | -6/Extension | Identified exit to Factory 4761 | -6/Extension | Rescued a captive Derelict 4791 | -6/Extension | Rescued a captive Derelict 4792 | -6/Extension | Rescued a captive Derelict 4870 | -6/Extension | Build established: Construct 4996 | -6/Extension | Lost 5 allies 5026 | -6/Extension | Extracted ID and sensor layout for unrecognized location from A7's data core 5055 | -6/Extension | Rescued a captive Derelict 5123 | -6/Extension | Rescued a captive Derelict 5158 | -6/Extension | Discovered exit to Factory (range 10) 5159 | -6/Extension | Discovered new exit (range 6) 5164 | -6/Extension | Identified exit to Cetus 5846 | -6/Extension | Entered Cetus 5846 | -6/Cetus | Accompanied by 1 ally 5858 | -6/Cetus | Spotted Cetus Guard 5858 | -6/Cetus | Spotted Cetus Guard 5861 | -6/Cetus | Spotted Cetus Guard 5865 | -6/Cetus | Spotted Cetus Guard 5866 | -6/Cetus | Destroyed by Cetus Guard with Advanced KE Penetrator Last Messages --------------- 05817_ U-05 Engineer lays Concrete. 05823_ T-07 Excavator exits Transfer Station. 05823_ R-10 Processor exits Transfer Station. 05823_ U-05 Engineer exits Transfer Station. 05825_ LGZ<&O6CAULA,OJQYQBJTDM %YHC8RCU<%0XSI,J 05830_ K-01 Serf exits Transfer Station. 05837_ T-07 Excavator enters Transfer Station. 05841_ R-10 Processor enters Transfer Station. 05846_ T-07 Excavator exits Transfer Station. 05846_ K-01 Serf exits Transfer Station. 05846_ R-10 Processor exits Transfer Station. LOCATION=CETUS GOAL=ESCAPE 05847_ EX-0JY(h): "This has to be a dream. Are we really here?" 05857_ W-25 Informer sends out distress signal. 05859_ Penetrated by Slug. 05864_ Slug penetrates Wall. 05866_ Penetrated by Slug. Map ----- +----------------------------------------------------+ | ??????????????????????????????????????? | | ??????????????????????????????????????? | | ??????????????????????????????????????? | | ??????????????????????????????????????? | | ??????????????????????????????????????? | | ??????????????????????????????????????? | | ??????????????????????????????????????? | | ??????????????????????????????????????? | | ??????????????????????????????????????? | | ??????????????????????????????????????? | | ??????????????????????????????????????? | | ??????????????????????????????????????? | | ??????????????????????????????????????? | | ??????????????????????????????????????? | | ??????????????????????????????????????? | | ??????????????????????????????????????? | | ??????????????????????????????????????? | | ??????????????????????????????????????? | | ??????????????????????????????????????? | | ??????????????????????????????????????? | | ??????????????????????????????????????? | | ??????????????????????????????????????? | | ??????????????????????????????????????? | | ????????????????????????? #???????????? | | ?#################;###; ######??????? | | ?# @ Y ????? | | ?# Y ????? | | ?# h w YY ????? | | ?#############################????????? | | ??????????????????????????????????????? | | ??????????????????????????????????????? | | ??????????????????????????????????????? | | ??????????????????????????????????????? | | ??????????????????????????????????????? | | ??????????????????????????????????????? | | ??????????????????????????????????????? | | ??????????????????????????????????????? | | ??????????????????????????????????????? | | ??????????????????????????????????????? | | ??????????????????????????????????????? | | ??????????????????????????????????????? | | ??????????????????????????????????????? | | ??????????????????????????????????????? | | ??????????????????????????????????????? | | ??????????????????????????????????????? | | ??????????????????????????????????????? | | ??????????????????????????????????????? | | ??????????????????????????????????????? | | ??????????????????????????????????????? | | ??????????????????????????????????????? | +----------------------------------------------------+ Best States ------------- Heat Dissipation 56 Energy Generation 29 Energy Capacity 965 Matter Stores 300 Matter Capacity 300 Sight Range 18 Robot Scan Range 15 Terrain Scan Range 14 Terrain Scan Density 185 Evasion (%) 60 Recoil Reduction 3 Particle Charging 20 Authchip Count 2 Item Schematics ----------------- Grenade Launcher | -10/Materials | Hacked Matter Filter | -8/Recycling | Hacked Microactuators | -8/Recycling | Hacked Flak Gun | -8/Recycling | Hacked Hvy. Armor Plating | -6/Factory | Hacked Robot Schematics ------------------ None Fabricated ------------ Flak Gun | x2 | -6/Factory Alien Tech Used ----------------- None Achievements -------------- A New Friend I Spy It Was An Accident, I Swear Librarian More Dakka Please Prison Break Tourist \\IAMDERELICT Challenges ------------ None Game ------ Seed PointRocketKatana Manual? 0 Play Time 01:38:13 Cumulative 8.9 hours Start 2024.04.01 @ 06:08:50 End 2024.04.01 @ 07:53:35 Sessions 1 Manual Loads 0 Difficulty Rogue Special Mode None Game No. 4 Rogue 4 Adventurer 0 Explorer 0 Win Type - Total 1 Types 1/0/0/0/0/0/0/0/0 Lore% 3 Gallery% 12 Achievement% 16 Wizard Run 0 Options --------- Layout 1 ASCII 0 Keyboard 0 Movement Mouse Keybinds 0 Fullscreen 1 Font 24/Smallcaps Map View 50x35 Zoom Use 0% Tactical HUD 1 Map Filters NONE Filters NONE Steam 1 RUN: 16c5964e-638f-458b-befd-776c9d9db6a6